[Event "Live Chess"]
[Site "Chess.com"]
[Date "2023.05.20"]
[Round "-"]
[White "JohanKjeldahl"]
[Black "gmnorfolk"]
[Result "1/2-1/2"]
[WhiteElo "1864"]
[BlackElo "2131"]
[TimeControl "300"]
[EndTime "15:53:53 PDT"]
[Termination "Game drawn - insufficient material"]

1. c4 {[%clk 0:04:57.1]} 1... e5 {[%clk 0:04:57.9]} 2. Nc3 {[%clk 0:04:55.8]}
2... Nf6 {[%clk 0:04:52]} 3. Nf3 {[%clk 0:04:54.1]} 3... Nc6 {[%clk 0:04:50.6]}
4. e3 {[%clk 0:04:53.2]} 4... Bb4 {[%clk 0:04:48.8]} 5. Qc2 {[%clk 0:04:52.2]}
5... Bxc3 {[%clk 0:04:47.7]} 6. bxc3 {[%clk 0:04:50.5]} 6... O-O {[%clk
0:04:41]} 7. d4 {[%clk 0:04:49]} 7... d6 {[%clk 0:04:40.1]} 8. Be2 {[%clk
0:04:46.9]} 8... Qe7 {[%clk 0:04:30.6]} 9. O-O {[%clk 0:04:45.1]} 9... Bd7
{[%clk 0:04:27.9]} 10. Ba3 {[%clk 0:04:43.9]} 10... Rfe8 {[%clk 0:04:21.8]} 11.
Rab1 {[%clk 0:04:42.6]} 11... b6 {[%clk 0:04:20.3]} 12. d5 {[%clk 0:04:25.7]}
12... Na5 {[%clk 0:04:17.6]} 13. e4 {[%clk 0:04:23.8]} 13... h6 {[%clk
0:04:12.6]} 14. h3 {[%clk 0:04:21.3]} 14... g5 {[%clk 0:04:04.8]} 15. Ne1 {[%clk
0:04:18.3]} 15... Kg7 {[%clk 0:03:57.9]} 16. Nd3 {[%clk 0:04:15.1]} 16... Nxc4
{[%clk 0:03:54.8]} 17. Bc1 {[%clk 0:04:13.5]} 17... Nxe4 {[%clk 0:03:49.5]} 18.
Nb4 {[%clk 0:03:58.2]} 18... Bf5 {[%clk 0:03:37.7]} 19. Bxc4 {[%clk 0:03:54.1]}
19... Ng3 {[%clk 0:03:23.9]} 20. Bd3 {[%clk 0:03:49.7]} 20... Bxd3 {[%clk
0:03:21.4]} 21. Qxd3 {[%clk 0:03:48.4]} 21... Nxf1 {[%clk 0:03:21.3]} 22. Kxf1
{[%clk 0:03:46.5]} 22... f5 {[%clk 0:03:19.5]} 23. Bb2 {[%clk 0:03:42.1]} 23...
e4 {[%clk 0:03:17.3]} 24. c4+ {[%clk 0:03:38.9]} 24... Kg6 {[%clk 0:03:16]} 25.
Qe2 {[%clk 0:03:33.2]} 25... f4 {[%clk 0:03:11.9]} 26. Nc6 {[%clk 0:03:30.4]}
26... Qf7 {[%clk 0:03:10.8]} 27. Nd4 {[%clk 0:03:19.1]} 27... Re7 {[%clk
0:03:05.4]} 28. Ne6 {[%clk 0:03:15.8]} 28... Rxe6 {[%clk 0:03:04.3]} 29. dxe6
{[%clk 0:03:14.2]} 29... Qxe6 {[%clk 0:03:03.9]} 30. Re1 {[%clk 0:03:12]} 30...
Re8 {[%clk 0:03:01.6]} 31. Qc2 {[%clk 0:03:08.8]} 31... c6 {[%clk 0:02:32]} 32.
f3 {[%clk 0:03:04.3]} 32... d5 {[%clk 0:02:30.4]} 33. cxd5 {[%clk 0:03:02]}
33... cxd5 {[%clk 0:02:28.6]} 34. fxe4 {[%clk 0:02:56.1]} 34... dxe4 {[%clk
0:02:26.4]} 35. Qc3 {[%clk 0:02:52.7]} 35... Rc8 {[%clk 0:02:18.2]} 36. Qg7+
{[%clk 0:02:49.7]} 36... Kh5 {[%clk 0:02:15.3]} 37. Qh7 {[%clk 0:02:29.3]} 37...
e3 {[%clk 0:01:43.9]} 38. Qd3 {[%clk 0:01:44.3]} 38... Qc4 {[%clk 0:01:34.1]}
39. Qe2+ {[%clk 0:01:39.2]} 39... Kg6 {[%clk 0:01:23.6]} 40. Rc1 {[%clk
0:01:33.7]} 40... Qxe2+ {[%clk 0:01:20.9]} 41. Kxe2 {[%clk 0:01:32.5]} 41...
Rxc1 {[%clk 0:01:19.2]} 42. Bxc1 {[%clk 0:01:31.3]} 42... Kf5 {[%clk 0:01:18.5]}
43. Kf3 {[%clk 0:01:30.3]} 43... h5 {[%clk 0:01:16.4]} 44. g4+ {[%clk
0:01:25.7]} 44... fxg3 {[%clk 0:01:10.8]} 45. Bxe3 {[%clk 0:01:23.6]} 45... g4+
{[%clk 0:00:53.6]} 46. hxg4+ {[%clk 0:01:20.9]} 46... hxg4+ {[%clk 0:00:53.1]}
47. Kxg3 {[%clk 0:01:19.9]} 47... Ke4 {[%clk 0:00:52.6]} 48. Bf2 {[%clk
0:01:11.3]} 48... Kd3 {[%clk 0:00:51.5]} 49. Kxg4 {[%clk 0:01:07.2]} 49... Kc2
{[%clk 0:00:50.7]} 50. Kf5 {[%clk 0:01:05.8]} 50... Kb2 {[%clk 0:00:49.4]} 51.
Ke6 {[%clk 0:01:04.9]} 51... Kxa2 {[%clk 0:00:48.4]} 52. Kd5 {[%clk 0:01:03.6]}
52... b5 {[%clk 0:00:46.8]} 53. Bxa7 {[%clk 0:01:00.6]} 53... b4 {[%clk
0:00:46]} 54. Bd4 {[%clk 0:00:58.6]} 54... b3 {[%clk 0:00:45.5]} 55. Kc4 {[%clk
0:00:57.7]} 55... b2 {[%clk 0:00:44.5]} 56. Bxb2 {[%clk 0:00:56.7]} 1/2-1/2

[Event "Live Chess"]
[Site "Chess.com"]
[Date "2023.05.20"]
[Round "-"]
[White "WelshTiger"]
[Black "Man-Del-Brot"]
[Result "1-0"]
[WhiteElo "2374"]
[BlackElo "1067"]
[TimeControl "300"]
[EndTime "15:53:54 PDT"]
[Termination "WelshTiger won by checkmate"]

1. e4 {[%clk 0:04:58.4]} 1... e5 {[%clk 0:04:55.6]} 2. Nf3 {[%clk 0:04:57.2]}
2... Nc6 {[%clk 0:04:54.6]} 3. Bb5 {[%clk 0:04:55.6]} 3... Nge7 {[%clk
0:04:51.7]} 4. c3 {[%clk 0:04:54.1]} 4... a6 {[%clk 0:04:50]} 5. Ba4 {[%clk
0:04:52.9]} 5... b5 {[%clk 0:04:48.5]} 6. Bc2 {[%clk 0:04:52.1]} 6... d6 {[%clk
0:04:44.5]} 7. d4 {[%clk 0:04:50.9]} 7... Ng6 {[%clk 0:04:39.7]} 8. h3 {[%clk
0:04:48.6]} 8... Be7 {[%clk 0:04:36.9]} 9. a4 {[%clk 0:04:46.1]} 9... Bb7 {[%clk
0:04:30.4]} 10. d5 {[%clk 0:04:38.7]} 10... Nb8 {[%clk 0:04:11]} 11. Qe2 {[%clk
0:04:36.2]} 11... bxa4 {[%clk 0:04:03.6]} 12. Bxa4+ {[%clk 0:04:34.4]} 12... Nd7
{[%clk 0:04:00.9]} 13. Na3 {[%clk 0:04:26.3]} 13... O-O {[%clk 0:03:58.6]} 14.
Nc4 {[%clk 0:04:25.2]} 14... Nb6 {[%clk 0:03:53.2]} 15. Nxb6 {[%clk 0:04:17.6]}
15... cxb6 {[%clk 0:03:51.8]} 16. Be3 {[%clk 0:04:17.3]} 16... b5 {[%clk
0:03:49.9]} 17. Bc2 {[%clk 0:04:16]} 17... Nf4 {[%clk 0:03:46.5]} 18. Bxf4
{[%clk 0:04:14.8]} 18... exf4 {[%clk 0:03:45.2]} 19. Nd4 {[%clk 0:04:13.3]}
19... Bf6 {[%clk 0:03:43.1]} 20. O-O {[%clk 0:04:11.2]} 20... Re8 {[%clk
0:03:40.8]} 21. Qd3 {[%clk 0:04:05]} 21... Be5 {[%clk 0:03:11.3]} 22. Nf3 {[%clk
0:03:58.5]} 22... Bf6 {[%clk 0:03:05.2]} 23. e5 {[%clk 0:03:56.2]} 23... dxe5
{[%clk 0:03:02.6]} 24. Qxh7+ {[%clk 0:03:55]} 24... Kf8 {[%clk 0:03:00]} 25. Be4
{[%clk 0:03:39.9]} 25... Qd6 {[%clk 0:02:44.6]} 26. Rfd1 {[%clk 0:03:38.2]}
26... Rac8 {[%clk 0:02:37.2]} 27. Qf5 {[%clk 0:03:23.1]} 27... Rc4 {[%clk
0:02:31.6]} 28. Bd3 {[%clk 0:03:17.3]} 28... Bc8 {[%clk 0:02:29.2]} 29. Qh5
{[%clk 0:03:16.2]} 29... Rc7 {[%clk 0:02:21.8]} 30. Be4 {[%clk 0:02:57.4]} 30...
Rc4 {[%clk 0:02:15.8]} 31. Bd3 {[%clk 0:02:54.4]} 31... Rc7 {[%clk 0:02:12.4]}
32. Ng5 {[%clk 0:02:53.2]} 32... Bxg5 {[%clk 0:01:59.4]} 33. Qxg5 {[%clk
0:02:53.1]} 33... Qe7 {[%clk 0:01:10]} 34. Qh5 {[%clk 0:02:48.2]} 34... Rd8
{[%clk 0:01:01.9]} 35. Qh8# {[%clk 0:02:46.1]} 1-0

[Event "Live Chess"]
[Site "Chess.com"]
[Date "2023.05.20"]
[Round "-"]
[White "JoeyCage"]
[Black "jagbama"]
[Result "1-0"]
[WhiteElo "2320"]
[BlackElo "1145"]
[TimeControl "300"]
[EndTime "15:53:55 PDT"]
[Termination "JoeyCage won by checkmate"]

1. e4 {[%clk 0:04:56.1]} 1... e5 {[%clk 0:04:59.3]} 2. Nf3 {[%clk 0:04:54.9]}
2... Nc6 {[%clk 0:04:58.8]} 3. Bb5 {[%clk 0:04:53.8]} 3... Bc5 {[%clk
0:04:56.2]} 4. O-O {[%clk 0:04:52.2]} 4... d6 {[%clk 0:04:55]} 5. c3 {[%clk
0:04:48.3]} 5... Bd7 {[%clk 0:04:52.2]} 6. d4 {[%clk 0:04:46.6]} 6... exd4
{[%clk 0:04:51.3]} 7. cxd4 {[%clk 0:04:45.8]} 7... Bb6 {[%clk 0:04:35.5]} 8. Nc3
{[%clk 0:04:43.2]} 8... a6 {[%clk 0:04:30.4]} 9. Ba4 {[%clk 0:04:40.6]} 9...
Nge7 {[%clk 0:04:19.8]} 10. Bg5 {[%clk 0:04:38.5]} 10... h6 {[%clk 0:04:10.5]}
11. Bh4 {[%clk 0:04:36.7]} 11... g5 {[%clk 0:04:01.6]} 12. Bg3 {[%clk 0:04:35]}
12... Ng6 {[%clk 0:03:52.3]} 13. d5 {[%clk 0:04:31.9]} 13... Nce5 {[%clk
0:03:50]} 14. Nxe5 {[%clk 0:04:30.2]} 14... Nxe5 {[%clk 0:03:47.4]} 15. Bxe5
{[%clk 0:04:28.8]} 15... dxe5 {[%clk 0:03:41.5]} 16. Qf3 {[%clk 0:04:25]} 16...
Bd4 {[%clk 0:03:26.2]} 17. Bxd7+ {[%clk 0:04:19.4]} 17... Qxd7 {[%clk
0:03:25.3]} 18. Qf6 {[%clk 0:04:18.3]} 18... Rh7 {[%clk 0:03:08.7]} 19. Ne2
{[%clk 0:04:16.3]} 19... Qe7 {[%clk 0:02:58.8]} 20. Qf5 {[%clk 0:04:11.6]} 20...
f6 {[%clk 0:02:53.4]} 21. Nxd4 {[%clk 0:04:09.3]} 21... exd4 {[%clk 0:02:49.2]}
22. Rfd1 {[%clk 0:04:05.5]} 22... c5 {[%clk 0:02:44.5]} 23. dxc6 {[%clk
0:04:03.1]} 23... bxc6 {[%clk 0:02:40]} 24. Rxd4 {[%clk 0:04:00.5]} 24... Rd8
{[%clk 0:02:35.3]} 25. Rxd8+ {[%clk 0:03:56.8]} 25... Kxd8 {[%clk 0:02:34.4]}
26. Rd1+ {[%clk 0:03:52.7]} 26... Ke8 {[%clk 0:02:33.5]} 27. Qc8+ {[%clk
0:03:49.5]} 27... Kf7 {[%clk 0:02:31.3]} 28. Rd7 {[%clk 0:03:47.6]} 28... Kg6
{[%clk 0:02:20.5]} 29. Rxe7 {[%clk 0:03:44.9]} 29... Rxe7 {[%clk 0:02:20.4]} 30.
Qxc6 {[%clk 0:03:43.5]} 30... Kh5 {[%clk 0:02:13.3]} 31. f3 {[%clk 0:03:39.6]}
31... f5 {[%clk 0:02:12.5]} 32. exf5 {[%clk 0:03:37.4]} 32... g4 {[%clk
0:02:04.9]} 33. Qg6+ {[%clk 0:03:33.5]} 33... Kh4 {[%clk 0:02:03]} 34. Qxg4#
{[%clk 0:03:33.4]} 1-0

[Event "Live Chess"]
[Site "Chess.com"]
[Date "2023.05.20"]
[Round "-"]
[White "hturner40"]
[Black "mikkyb4"]
[Result "0-1"]
[WhiteElo "1792"]
[BlackElo "1033"]
[TimeControl "300"]
[EndTime "15:53:56 PDT"]
[Termination "mikkyb4 won on time"]

1. Nf3 {[%clk 0:04:57.6]} 1... g6 {[%clk 0:04:59.4]} 2. d4 {[%clk 0:04:54.3]}
2... Bg7 {[%clk 0:04:58.6]} 3. e4 {[%clk 0:04:52.9]} 3... d6 {[%clk 0:04:57.6]}
4. Nc3 {[%clk 0:04:50.7]} 4... a6 {[%clk 0:04:55.4]} 5. Bc4 {[%clk 0:04:47.9]}
5... b5 {[%clk 0:04:47.2]} 6. Bb3 {[%clk 0:04:44.5]} 6... e6 {[%clk 0:04:45.4]}
7. a3 {[%clk 0:04:40.7]} 7... Bb7 {[%clk 0:04:43.3]} 8. O-O {[%clk 0:04:30.5]}
8... Nd7 {[%clk 0:04:40.6]} 9. Ng5 {[%clk 0:04:17.5]} 9... Qe7 {[%clk
0:03:48.9]} 10. f4 {[%clk 0:04:02]} 10... c5 {[%clk 0:03:40.2]} 11. f5 {[%clk
0:03:50.8]} 11... cxd4 {[%clk 0:03:33.2]} 12. fxe6 {[%clk 0:03:24.9]} 12... fxe6
{[%clk 0:03:21.5]} 13. Rf7 {[%clk 0:03:01.9]} 13... Qd8 {[%clk 0:02:54.9]} 14.
Rxg7 {[%clk 0:02:24]} 14... dxc3 {[%clk 0:02:52.2]} 15. Bxe6 {[%clk 0:02:11.3]}
15... Qb6+ {[%clk 0:02:46.3]} 16. Kh1 {[%clk 0:02:04.5]} 16... Ngf6 {[%clk
0:02:38.1]} 17. Bxd7+ {[%clk 0:01:50.1]} 17... Nxd7 {[%clk 0:02:30.2]} 18. Qg4
{[%clk 0:01:46.3]} 18... O-O-O {[%clk 0:02:19.5]} 19. b4 {[%clk 0:01:24.2]}
19... Rhf8 {[%clk 0:02:03.6]} 20. Bf4 {[%clk 0:01:17.7]} 20... Qf2 {[%clk
0:01:37.1]} 21. Nh3 {[%clk 0:01:02.3]} 21... Qxc2 {[%clk 0:01:18.9]} 22. Bxd6
{[%clk 0:00:53.5]} 22... Qb2 {[%clk 0:01:03.5]} 23. Rg1 {[%clk 0:00:45.8]} 23...
c2 {[%clk 0:00:56.4]} 24. Bf4 {[%clk 0:00:31.7]} 24... Qxg7 {[%clk 0:00:52.2]}
25. Rc1 {[%clk 0:00:22.9]} 25... Qc3 {[%clk 0:00:49.3]} 26. Qe2 {[%clk
0:00:17.4]} 26... Nb6 {[%clk 0:00:34.3]} 27. Rxc2 {[%clk 0:00:14.7]} 27... Qxc2
{[%clk 0:00:21.2]} 28. Qxc2+ {[%clk 0:00:13.4]} 28... Nc4 {[%clk 0:00:19.8]} 0-1

[Event "Live Chess"]
[Site "Chess.com"]
[Date "2023.05.20"]
[Round "-"]
[White "jimwad"]
[Black "wadsy27"]
[Result "0-1"]
[WhiteElo "1221"]
[BlackElo "2564"]
[TimeControl "300"]
[EndTime "15:54:22 PDT"]
[Termination "wadsy27 won by checkmate"]

1. d4 {[%clk 0:04:58]} 1... d5 {[%clk 0:04:54.8]} 2. c4 {[%clk 0:04:56.6]} 2...
c6 {[%clk 0:04:52.9]} 3. Nc3 {[%clk 0:04:54.2]} 3... Nf6 {[%clk 0:04:50.5]} 4.
Bf4 {[%clk 0:04:52.3]} 4... dxc4 {[%clk 0:04:48.5]} 5. e3 {[%clk 0:04:50.8]}
5... b5 {[%clk 0:04:41.3]} 6. Nf3 {[%clk 0:04:49.1]} 6... e6 {[%clk 0:04:36.7]}
7. Be2 {[%clk 0:04:46.9]} 7... Bb7 {[%clk 0:04:32.2]} 8. Ne5 {[%clk 0:03:00.4]}
8... Nbd7 {[%clk 0:04:19.2]} 9. Nxd7 {[%clk 0:02:58.1]} 9... Qxd7 {[%clk
0:04:16.7]} 10. O-O {[%clk 0:02:56.8]} 10... Bd6 {[%clk 0:04:05.6]} 11. Bg5
{[%clk 0:02:50.2]} 11... h6 {[%clk 0:04:03.4]} 12. Bxf6 {[%clk 0:02:49]} 12...
gxf6 {[%clk 0:04:02.7]} 13. b3 {[%clk 0:02:45]} 13... cxb3 {[%clk 0:03:43.4]}
14. axb3 {[%clk 0:02:41.8]} 14... f5 {[%clk 0:03:42.1]} 15. g3 {[%clk
0:02:30.1]} 15... a6 {[%clk 0:03:35.5]} 16. Bf3 {[%clk 0:02:28.1]} 16... h5
{[%clk 0:03:33.3]} 17. Bg2 {[%clk 0:02:26.5]} 17... h4 {[%clk 0:03:32]} 18. gxh4
{[%clk 0:02:23.6]} 18... O-O-O {[%clk 0:03:29.5]} 19. h5 {[%clk 0:02:20]} 19...
Bc7 {[%clk 0:03:25.8]} 20. b4 {[%clk 0:02:15]} 20... Qd6 {[%clk 0:03:23.3]} 21.
Rb1 {[%clk 0:02:05.1]} 21... Qxh2# {[%clk 0:03:20.3]} 0-1

[Event "Live Chess"]
[Site "Chess.com"]
[Date "2023.05.20"]
[Round "-"]
[White "fretle"]
[Black "IgorSchukin"]
[Result "1/2-1/2"]
[WhiteElo "1812"]
[BlackElo "1742"]
[TimeControl "300"]
[EndTime "15:54:41 PDT"]
[Termination "Game drawn - insufficient material"]

1. h4 {[%clk 0:04:58.4]} 1... d5 {[%clk 0:04:58.2]} 2. h5 {[%clk 0:04:55.5]}
2... e5 {[%clk 0:04:56.5]} 3. e3 {[%clk 0:04:54.4]} 3... c5 {[%clk 0:04:54.4]}
4. b3 {[%clk 0:04:53.1]} 4... Nc6 {[%clk 0:04:53.4]} 5. Bb2 {[%clk 0:04:52.1]}
5... Nf6 {[%clk 0:04:49.7]} 6. Be2 {[%clk 0:04:50.7]} 6... d4 {[%clk 0:04:48.4]}
7. d3 {[%clk 0:04:32.9]} 7... dxe3 {[%clk 0:04:39.3]} 8. fxe3 {[%clk 0:04:32.8]}
8... Nd5 {[%clk 0:04:35.2]} 9. Qd2 {[%clk 0:04:27.7]} 9... Qg5 {[%clk
0:04:30.4]} 10. Nf3 {[%clk 0:04:09.4]} 10... Qxe3 {[%clk 0:04:24]} 11. Nxe5
{[%clk 0:03:59.9]} 11... Qg3+ {[%clk 0:04:17.8]} 12. Kd1 {[%clk 0:03:46.7]}
12... Nxe5 {[%clk 0:04:16]} 13. Rh3 {[%clk 0:03:40.3]} 13... Qxg2 {[%clk
0:03:54.7]} 14. Bxe5 {[%clk 0:03:35.8]} 14... Qxh3 {[%clk 0:03:51.9]} 15. c4
{[%clk 0:03:19.7]} 15... Ne3+ {[%clk 0:03:42.8]} 16. Kc1 {[%clk 0:03:18.7]}
16... Qh1+ {[%clk 0:03:38.5]} 17. Kb2 {[%clk 0:03:17.6]} 17... Nf5 {[%clk
0:03:29.7]} 18. Nc3 {[%clk 0:03:14.1]} 18... Qc6 {[%clk 0:03:16.8]} 19. Nb5
{[%clk 0:03:08.6]} 19... Bd6 {[%clk 0:03:10.4]} 20. Qf4 {[%clk 0:02:59.9]} 20...
O-O {[%clk 0:02:47.2]} 21. Nxd6 {[%clk 0:02:54.1]} 21... Nxd6 {[%clk 0:02:41.9]}
22. Bxd6 {[%clk 0:02:54]} 22... Re8 {[%clk 0:02:39.2]} 23. Bf3 {[%clk
0:02:49.3]} 23... Qd7 {[%clk 0:02:33]} 24. Rg1 {[%clk 0:02:18.7]} 24... Qf5
{[%clk 0:02:19.5]} 25. Qg3 {[%clk 0:02:16.8]} 25... g6 {[%clk 0:02:16]} 26. hxg6
{[%clk 0:02:07]} 26... hxg6 {[%clk 0:02:14.4]} 27. Be4 {[%clk 0:02:06.1]} 27...
Rxe4 {[%clk 0:02:02.1]} 28. dxe4 {[%clk 0:02:01.8]} 28... Qxe4 {[%clk
0:02:01.7]} 29. Rg2 {[%clk 0:01:52.3]} 29... Bf5 {[%clk 0:01:57.8]} 30. Rh2
{[%clk 0:01:46.6]} 30... Qd4+ {[%clk 0:01:45.1]} 31. Ka3 {[%clk 0:01:42.2]}
31... b5 {[%clk 0:01:12.3]} 32. cxb5 {[%clk 0:00:48]} 32... Qb4+ {[%clk
0:01:08.5]} 33. Kb2 {[%clk 0:00:46.9]} 33... Qd4+ {[%clk 0:01:01]} 34. Ka3
{[%clk 0:00:45.6]} 34... a6 {[%clk 0:00:41.8]} 35. b6 {[%clk 0:00:44.9]} 35...
Qb4+ {[%clk 0:00:35.9]} 36. Kb2 {[%clk 0:00:43.8]} 36... Qd4+ {[%clk 0:00:30]}
37. Ka3 {[%clk 0:00:43]} 37... Re8 {[%clk 0:00:26]} 38. b7 {[%clk 0:00:15.1]}
38... Qb4+ {[%clk 0:00:24.2]} 39. Kb2 {[%clk 0:00:14.4]} 39... Qxb7 {[%clk
0:00:22.2]} 40. Be5 {[%clk 0:00:12.4]} 40... Rxe5 {[%clk 0:00:18.2]} 41. Qxe5
{[%clk 0:00:12.3]} 41... f6 {[%clk 0:00:16.3]} 42. Qxf6 {[%clk 0:00:10.9]} 42...
Qg7 {[%clk 0:00:15.3]} 43. Qxg7+ {[%clk 0:00:09.6]} 43... Kxg7 {[%clk
0:00:14.9]} 44. Rf2 {[%clk 0:00:08.2]} 44... Kf6 {[%clk 0:00:12.5]} 45. Kc3
{[%clk 0:00:08.1]} 45... Ke5 {[%clk 0:00:11.6]} 46. Kc4 {[%clk 0:00:07.6]} 46...
g5 {[%clk 0:00:10.6]} 47. Kxc5 {[%clk 0:00:07.5]} 47... g4 {[%clk 0:00:10]} 48.
Kb6 {[%clk 0:00:06.9]} 48... g3 {[%clk 0:00:08.8]} 49. Rg2 {[%clk 0:00:06.6]}
49... Kf4 {[%clk 0:00:08.4]} 50. Rg1 {[%clk 0:00:05.7]} 50... Bd3 {[%clk
0:00:07.4]} 51. b4 {[%clk 0:00:03.6]} 51... Kf3 {[%clk 0:00:06.7]} 52. a4 {[%clk
0:00:02.7]} 52... Kf2 {[%clk 0:00:06]} 53. Rxg3 {[%clk 0:00:02]} 53... Kxg3
{[%clk 0:00:04.7]} 54. b5 {[%clk 0:00:01.9]} 54... axb5 {[%clk 0:00:03.5]} 55.
axb5 {[%clk 0:00:01.8]} 55... Bxb5 {[%clk 0:00:02.3]} 1/2-1/2

[Event "Live Chess"]
[Site "Chess.com"]
[Date "2023.05.20"]
[Round "-"]
[White "weibs440"]
[Black "LiamClery2020"]
[Result "0-1"]
[WhiteElo "951"]
[BlackElo "2062"]
[TimeControl "300"]
[EndTime "15:54:53 PDT"]
[Termination "LiamClery2020 won by resignation"]

1. e4 {[%clk 0:04:58.9]} 1... Nf6 {[%clk 0:04:59.9]} 2. Nc3 {[%clk 0:04:55.8]}
2... e5 {[%clk 0:04:59]} 3. f4 {[%clk 0:04:52.8]} 3... d5 {[%clk 0:04:58.1]} 4.
fxe5 {[%clk 0:04:51.2]} 4... Nxe4 {[%clk 0:04:57.5]} 5. Qf3 {[%clk 0:04:50.6]}
5... Nc6 {[%clk 0:04:56.5]} 6. Nxe4 {[%clk 0:04:45]} 6... Nd4 {[%clk 0:04:55.2]}
7. Qd1 {[%clk 0:04:32.2]} 7... dxe4 {[%clk 0:04:53.5]} 8. c3 {[%clk 0:04:08.6]}
8... Nc6 {[%clk 0:04:51]} 9. Bc4 {[%clk 0:03:58]} 9... Nxe5 {[%clk 0:04:49.5]}
10. Bb3 {[%clk 0:03:51.5]} 10... Nd3+ {[%clk 0:04:47.3]} 11. Ke2 {[%clk
0:03:45.6]} 11... Bg4+ {[%clk 0:04:45.2]} 12. Nf3 {[%clk 0:03:40.8]} 12... exf3+
{[%clk 0:04:44.3]} 13. gxf3 {[%clk 0:03:40.7]} 13... Nf4+ {[%clk 0:04:37]} 14.
Kf2 {[%clk 0:03:36.7]} 14... Qh4+ {[%clk 0:04:34.4]} 15. Kf1 {[%clk 0:03:29.6]}
15... Bh3+ {[%clk 0:04:31]} 16. Kg1 {[%clk 0:03:25.7]} 16... Qg5+ {[%clk
0:04:29.2]} 0-1

[Event "Live Chess"]
[Site "Chess.com"]
[Date "2023.05.20"]
[Round "-"]
[White "domrobson"]
[Black "blowerd"]
[Result "1-0"]
[WhiteElo "1776"]
[BlackElo "1388"]
[TimeControl "300"]
[EndTime "15:54:54 PDT"]
[Termination "domrobson won by checkmate"]

1. d4 {[%clk 0:04:58.4]} 1... d5 {[%clk 0:04:57.7]} 2. c4 {[%clk 0:04:57.8]}
2... e6 {[%clk 0:04:55.1]} 3. Nf3 {[%clk 0:04:57.1]} 3... Nf6 {[%clk 0:04:53.5]}
4. Nc3 {[%clk 0:04:56.5]} 4... Nbd7 {[%clk 0:04:52.1]} 5. cxd5 {[%clk
0:04:54.2]} 5... exd5 {[%clk 0:04:50.5]} 6. Bg5 {[%clk 0:04:53.7]} 6... b6
{[%clk 0:04:49]} 7. e3 {[%clk 0:04:52.4]} 7... Be7 {[%clk 0:04:47]} 8. Bd3
{[%clk 0:04:51]} 8... O-O {[%clk 0:04:46]} 9. O-O {[%clk 0:04:50.5]} 9... Re8
{[%clk 0:04:44.8]} 10. Re1 {[%clk 0:04:49.2]} 10... Bb7 {[%clk 0:04:42.8]} 11.
Rc1 {[%clk 0:04:48.5]} 11... Rc8 {[%clk 0:04:40.3]} 12. Bb1 {[%clk 0:04:46.4]}
12... c5 {[%clk 0:04:39.2]} 13. Ne5 {[%clk 0:04:40.6]} 13... cxd4 {[%clk
0:04:31.8]} 14. exd4 {[%clk 0:04:39]} 14... Nxe5 {[%clk 0:04:25]} 15. dxe5
{[%clk 0:04:37.7]} 15... Nd7 {[%clk 0:04:21.3]} 16. Bxe7 {[%clk 0:04:34.1]}
16... Rxe7 {[%clk 0:04:16.4]} 17. Nxd5 {[%clk 0:04:30.9]} 17... Bxd5 {[%clk
0:04:10.3]} 18. Qxd5 {[%clk 0:04:29.5]} 18... Rxc1 {[%clk 0:04:05]} 19. Rxc1
{[%clk 0:04:28.3]} 19... Rxe5 {[%clk 0:03:58.9]} 20. Qd3 {[%clk 0:04:27.1]}
20... Qe8 {[%clk 0:03:48.6]} 21. Qxh7+ {[%clk 0:04:25.1]} 21... Kf8 {[%clk
0:03:45.7]} 22. Qh8+ {[%clk 0:04:24.2]} 22... Ke7 {[%clk 0:03:44.7]} 23. Qxe8+
{[%clk 0:04:23.1]} 23... Kxe8 {[%clk 0:03:42.2]} 24. Kf1 {[%clk 0:04:22.2]}
24... Nf6 {[%clk 0:03:38.1]} 25. Re1 {[%clk 0:04:20.8]} 25... Rxe1+ {[%clk
0:03:34.9]} 26. Kxe1 {[%clk 0:04:20]} 26... Ke7 {[%clk 0:03:32.8]} 27. Bf5
{[%clk 0:04:16.9]} 27... Nd5 {[%clk 0:03:31.2]} 28. a3 {[%clk 0:04:14.1]} 28...
f6 {[%clk 0:03:30.2]} 29. g3 {[%clk 0:04:12.4]} 29... Kd6 {[%clk 0:03:29.3]} 30.
Kd2 {[%clk 0:04:10.7]} 30... Ke5 {[%clk 0:03:28.2]} 31. Bb1 {[%clk 0:04:04.8]}
31... Nc7 {[%clk 0:03:24.6]} 32. h4 {[%clk 0:04:02.4]} 32... Nb5 {[%clk
0:03:22.7]} 33. Kd3 {[%clk 0:03:54]} 33... Nd4 {[%clk 0:03:20.8]} 34. f4+ {[%clk
0:03:51]} 34... Kd5 {[%clk 0:03:16.5]} 35. Ba2+ {[%clk 0:03:48.9]} 35... Kc5
{[%clk 0:03:12.6]} 36. Ke4 {[%clk 0:03:37.5]} 36... Nb5 {[%clk 0:02:59.8]} 37.
g4 {[%clk 0:03:32.6]} 37... Kd6 {[%clk 0:02:56.4]} 38. Kf5 {[%clk 0:03:30.6]}
38... Ke7 {[%clk 0:02:55.3]} 39. Kg6 {[%clk 0:03:28.8]} 39... Kf8 {[%clk
0:02:53]} 40. g5 {[%clk 0:03:27.9]} 40... fxg5 {[%clk 0:02:49.4]} 41. fxg5
{[%clk 0:03:26.2]} 41... Nd4 {[%clk 0:02:48.3]} 42. h5 {[%clk 0:03:22.8]} 42...
Ne2 {[%clk 0:02:17.8]} 43. h6 {[%clk 0:03:16.5]} 43... gxh6 {[%clk 0:02:15]} 44.
Kxh6 {[%clk 0:03:10.7]} 44... Nc1 {[%clk 0:02:14]} 45. Bc4 {[%clk 0:03:03.9]}
45... b5 {[%clk 0:02:12.1]} 46. Bxb5 {[%clk 0:03:02.3]} 46... Kg8 {[%clk
0:02:07.1]} 47. Bc4+ {[%clk 0:03:00.5]} 47... Kf8 {[%clk 0:02:03.4]} 48. g6
{[%clk 0:02:59.9]} 48... a5 {[%clk 0:01:57.3]} 49. g7+ {[%clk 0:02:58.9]} 49...
Ke7 {[%clk 0:01:55.3]} 50. g8=Q {[%clk 0:02:57.8]} 50... Kd7 {[%clk 0:01:54.1]}
51. Qe6+ {[%clk 0:02:56.4]} 51... Kc7 {[%clk 0:01:53]} 52. Bb5 {[%clk
0:02:53.7]} 52... Kb7 {[%clk 0:01:49.4]} 53. Qc6+ {[%clk 0:02:51.9]} 53... Ka7
{[%clk 0:01:47.8]} 54. Qc7+ {[%clk 0:02:50.1]} 54... Ka8 {[%clk 0:01:46.5]} 55.
Bc6# {[%clk 0:02:49.3]} 1-0